fUST/lending_fUST_20250502
["ID","MTS","AMOUNT","RATE_DAILY","PERIOD"]
[359610261,1746181847343,-400.0,0.00019452,2]
[359610263,1746181847352,-400.0,0.00019452,2]
[359610265,1746181847362,-411.87,0.00019452,2]
[359610267,1746181847372,-400.0,0.00019452,2]
[359610269,1746181847382,-400.0,0.00019452,2]
[359610271,1746181847392,-400.0,0.00019452,2]
[359610273,1746181847401,-400.0,0.00019452,2]
[359610275,1746181847411,-400.0,0.00019452,2]
[359610277,1746181847421,-614.4,0.00019452,2]
[359610279,1746181847430,-400.0,0.00019452,2]
[359610281,1746181847440,-402.44361057,0.00019452,2]
[359610283,1746181847449,-417.76719689,0.00019452,2]
[359610285,1746181847459,-400.0,0.00019452,2]
[359610287,1746181847468,-213.56248211,0.00019452,2]
[359610289,1746181847478,-477.06,0.00019452,2]
[359610291,1746181847488,-407.96359503,0.00019452,2]
[359610293,1746181847498,-400.0,0.00019452,2]
[359610295,1746181847507,-151.0,0.00019452,2]
[359610297,1746181847517,-151.0,0.00019452,2]
[359610299,1746181847526,-151.0,0.00019452,2]
[359610301,1746181847536,-400.0,0.00019452,2]
[359610303,1746181847546,-411.13,0.00019452,2]
[359610305,1746181847556,-151.0,0.00019452,2]
[359610307,1746181847566,-151.0,0.00019452,2]
[359610309,1746181847575,-151.0,0.00019452,2]
[359610311,1746181847585,-418.34604725,0.00019452,2]
[359610313,1746181847595,-693.43,0.00019452,2]
[359610315,1746181847604,-207.77674129,0.00019452,2]
[359610317,1746181847614,-400.0,0.00019452,2]
[359610319,1746181847624,-400.0,0.00019452,2]
[359610321,1746181847634,-229.43133552,0.00019452,2]
[359610323,1746181847644,-400.0,0.00019452,2]
[359610325,1746181847654,-400.0,0.00019452,2]
[359610327,1746181847664,-400.0,0.00019452,2]
[359610329,1746181847674,-400.0,0.00019452,2]
[359610331,1746181847687,-400.0,0.00019452,2]
[359610333,1746181847697,-400.0,0.00019452,2]
[359610335,1746181847707,-400.0,0.00019452,2]
[359610337,1746181847717,-151.0,0.00019452,2]
[359610339,1746181847727,-400.0,0.00019452,2]
[359610341,1746181847737,-506.73632156,0.00019452,2]
[359610343,1746181847747,-500.0,0.00019452,2]
[359610345,1746181847756,-400.0,0.00019452,2]
[359610347,1746181847766,-500.0,0.00019452,2]
[359610349,1746181847778,-400.0,0.00019452,2]
[359610351,1746181847787,-400.0,0.00019452,2]
[359610353,1746181847798,-400.0,0.00019452,2]
[359610355,1746181847807,-151.0,0.00019452,2]
[359610357,1746181847817,-151.0,0.00019452,2]
[359610359,1746181847826,-506.67865375,0.00019452,2]
[359610361,1746181847835,-151.0,0.00019452,2]
[359610363,1746181847845,-506.73289112,0.00019452,2]
[359610365,1746181847854,-473.36438764,0.00019452,2]
[359610367,1746181847864,-441.20151204,0.00019452,2]
[359610369,1746181847874,-1098.83,0.00019452,2]
[359610371,1746181847884,-229.21515246,0.00019452,2]
[359610373,1746181847894,-400.0,0.00019452,2]
[359610375,1746181847904,-171.02118256,0.00019452,2]
[359610377,1746181847914,-400.0,0.00019452,2]
[359610379,1746181847924,-618.7,0.00019452,2]
[359610381,1746181847934,-400.0,0.00019452,2]
[359610383,1746181847944,-400.0,0.00019452,2]
[359610385,1746181847955,-400.0,0.00019452,2]
[359610387,1746181847964,-508.49,0.00019452,2]
[359610389,1746181847973,-400.0,0.00019452,2]
[359610391,1746181847983,-400.0,0.00019452,2]
[359610393,1746181847992,-4153.2,0.00019452,2]
[359610395,1746181848003,-315.09789003,0.00019452,2]
[359610397,1746181848013,-400.0,0.00019452,2]
[359610399,1746181848023,-400.0,0.00019452,2]
[359610400,1746181848034,-904.56,0.00019452,2]
[359610402,1746181848043,-400.0,0.00019452,2]
[359610404,1746181848054,-750.33,0.00019452,2]
[359610406,1746181848064,-400.0,0.00019452,2]
[359610408,1746181848074,-400.0,0.00019452,2]
[359610410,1746181848084,-624.48,0.00019452,2]
[359610412,1746181848094,-400.0,0.00019452,2]
[359610414,1746181848104,-400.0,0.00019452,2]
[359610416,1746181848114,-400.0,0.00019452,2]
[359610418,1746181848124,-400.0,0.00019452,2]
[359610420,1746181848134,-706.06,0.00019452,2]
[359610422,1746181848143,-221.44301383,0.00019452,2]
[359610424,1746181848152,-400.0,0.00019452,2]
[359610426,1746181848162,-400.0,0.00019452,2]
[359610428,1746181848172,-400.0,0.00019452,2]
[359610430,1746181848182,-400.0,0.00019452,2]
[359610432,1746181848192,-651.09,0.00019452,2]
[359610434,1746181848203,-406.51948644,0.00019452,2]
[359610436,1746181848213,-562.54,0.00019452,2]
[359610437,1746181848223,-351.46008355,0.00019452,2]
[359610438,1746181848234,-400.0,0.00019452,2]
[359610439,1746181848244,-400.0,0.00019452,2]
[359610440,1746181848253,-400.0,0.00019452,2]
[359610441,1746181848262,-198.1,0.00019452,2]
[359610442,1746181848274,-400.0,0.00019452,2]
[359610443,1746181848285,-400.0,0.00019452,2]
[359610444,1746181848294,-400.0,0.00019452,2]
[359610445,1746181848304,-400.0,0.00019452,2]
[359610446,1746181848314,-400.0,0.00019452,2]
[359610447,1746181848324,-789.21,0.00019452,2]
[359610448,1746181848334,-488.42142648,0.00019452,2]
[359610449,1746181848345,-400.0,0.00019452,2]
[359610450,1746181848355,-400.0,0.00019452,2]
[359610451,1746181848365,-400.0,0.00019452,2]
[359610452,1746181848377,-400.0,0.00019452,2]
[359610453,1746181848386,-400.0,0.00019452,2]
[359610454,1746181848395,-400.0,0.00019452,2]
[359610455,1746181848405,-400.0,0.00019452,2]
[359610456,1746181848415,-400.0,0.00019452,2]
[359610457,1746181848425,-400.0,0.00019452,2]
[359610458,1746181848435,-400.0,0.00019452,2]
[359610459,1746181848445,-400.0,0.00019452,2]
[359610460,1746181848454,-754.42,0.00019452,2]
[359610461,1746181848463,-841.79,0.00019452,2]
[359610462,1746181848473,-400.0,0.00019452,2]
[359610463,1746181848482,-504.24731311,0.00019452,2]
[359610464,1746181848492,-400.0,0.00019452,2]
[359610465,1746181848501,-400.0,0.00019452,2]
[359610466,1746181848511,-2036.74,0.00019452,2]
[359610467,1746181848521,-400.0,0.00019452,2]
[359610468,1746181848530,-400.0,0.00019452,2]
[359610469,1746181848540,-400.0,0.00019452,2]
[359610470,1746181848550,-400.0,0.00019452,2]
[359610471,1746181848560,-400.0,0.00019452,2]
[359610472,1746181848569,-506.46724938,0.00019452,2]
[359610473,1746181848579,-400.0,0.00019452,2]
[359610474,1746181848589,-400.0,0.00019452,2]
[359610475,1746181848598,-500.0,0.00019452,2]
[359610476,1746181848607,-474.61,0.00019452,2]
[359610477,1746181848617,-400.0,0.00019452,2]
[359610478,1746181848626,-400.0,0.00019452,2]
[359610479,1746181848635,-400.0,0.00019452,2]
[359610480,1746181848645,-1004.85,0.00019452,2]
[359610481,1746181848654,-400.0,0.00019452,2]
[359610482,1746181848664,-876.28,0.00019452,2]
[359610483,1746181848674,-400.0,0.00019452,2]
[359610485,1746181848685,-502.83602165,0.00019452,2]
[359610487,1746181848695,-400.0,0.00019452,2]
[359610488,1746181848704,-400.0,0.00019452,2]
[359610489,1746181848714,-206.67085735,0.00019452,2]
[359610490,1746181848724,-401.26685933,0.00019452,2]
[359610491,1746181848734,-400.0,0.00019452,2]
[359610492,1746181848743,-300.0,0.00019452,2]
[359610493,1746181848753,-400.0,0.00019452,2]
[359610494,1746181848763,-400.0,0.00019452,2]
[359610495,1746181848773,-400.0,0.00019452,2]
[359610496,1746181848783,-1104.75,0.00019452,2]
[359610497,1746181848793,-411.17,0.00019452,2]
[359610498,1746181848803,-400.0,0.00019452,2]
[359610499,1746181848813,-400.0,0.00019452,2]
[359610500,1746181848823,-447.02,0.00019452,2]
[359610501,1746181848833,-400.0,0.00019452,2]
[359610502,1746181848843,-1852.52,0.00019452,2]
[359610503,1746181848854,-400.0,0.00019452,2]
[359610504,1746181848864,-400.0,0.00019452,2]
[359610505,1746181848875,-739.55,0.00019452,2]
[359610506,1746181848885,-400.0,0.00019452,2]
[359610507,1746181848895,-304.68672146,0.00019452,2]
[359610508,1746181848905,-400.0,0.00019452,2]
[359610509,1746181848915,-400.0,0.00019452,2]
[359610510,1746181848925,-400.7171259,0.00019452,2]
[359610511,1746181848935,-929.77,0.00019452,2]
[359610512,1746181848946,-400.0,0.00019452,2]
[359610513,1746181848956,-955.17,0.00019452,2]
[359610514,1746181849017,-327.23252096,0.00019452,2]
[359610515,1746181849027,-400.56319975,0.00019452,2]
[359610516,1746181849037,-400.0,0.00019452,2]
[359610517,1746181849047,-400.0,0.00019452,2]
[359610518,1746181849057,-984.84,0.00019452,2]
[359610519,1746181849067,-589.43,0.00019452,2]
[359610520,1746181849076,-400.0,0.00019452,2]
[359610521,1746181849086,-1188.48,0.00019452,2]
[359610522,1746181849095,-400.0,0.00019452,2]
[359610523,1746181849105,-400.0,0.00019452,2]
[359610524,1746181849115,-400.0,0.00019452,2]
[359610525,1746181849125,-439.75,0.00019452,2]
[359610526,1746181849135,-400.0,0.00019452,2]
[359610527,1746181849144,-400.0,0.00019452,2]
[359610528,1746181849154,-518.44020525,0.00019452,2]
[359610529,1746181849164,-400.0,0.00019452,2]
[359610530,1746181849173,-400.0,0.00019452,2]
[359610531,1746181849183,-400.0,0.00019452,2]
[359610532,1746181849194,-400.0,0.00019452,2]
[359610533,1746181849205,-680.22,0.00019452,2]
[359610534,1746181849215,-151.0,0.00019452,2]
[359610535,1746181849224,-284.739213,0.00019452,2]
[359610536,1746181849235,-400.0,0.00019452,2]
[359610537,1746181849246,-400.0,0.00019452,2]
[359610538,1746181849256,-511.54,0.00019452,2]
[359610539,1746181849266,-203.23984916,0.00019452,2]
[359610540,1746181849277,-400.0,0.00019452,2]
[359610541,1746181849287,-400.0,0.00019452,2]
[359610542,1746181849299,-400.0,0.00019452,2]
[359610543,1746181849309,-400.0,0.00019452,2]
[359610544,1746181849319,-400.0,0.00019452,2]
[359610545,1746181849328,-1687.76,0.00019452,2]
[359610546,1746181849338,-732.77,0.00019452,2]
[359610547,1746181849348,-400.0,0.00019452,2]
[359610548,1746181849358,-173.82662822,0.00019452,2]
[359610549,1746181849367,-1124.49,0.00019452,2]
[359610550,1746181849377,-400.0,0.00019452,2]
[359610551,1746181849386,-400.0,0.00019452,2]
[359610552,1746181849395,-482.43,0.00019452,2]
[359610553,1746181849405,-400.0,0.00019452,2]
[359610554,1746181849415,-400.0,0.00019452,2]
[359610555,1746181849425,-400.0,0.00019452,2]
[359610556,1746181849435,-400.0,0.00019452,2]
[359610557,1746181849445,-400.0,0.00019452,2]
[359610558,1746181849459,-400.0,0.00019452,2]
[359610559,1746181849469,-400.0,0.00019452,2]
[359610560,1746181849479,-400.0,0.00019452,2]
[359610561,1746181849488,-400.0,0.00019452,2]
[359610562,1746181849498,-400.0,0.00019452,2]
[359610563,1746181849508,-400.0,0.00019452,2]
[359610564,1746181849517,-400.0,0.00019452,2]
[359610565,1746181849527,-280.60199398,0.00019452,2]
[359610566,1746181849536,-400.0,0.00019452,2]
[359610567,1746181849547,-400.0,0.00019452,2]
[359610568,1746181849556,-400.0,0.00019452,2]
[359610569,1746181849566,-503.74,0.00019452,2]
[359610570,1746181849576,-451.12,0.00019452,2]
[359610571,1746181849586,-400.0,0.00019452,2]
[359610572,1746181849595,-500.0,0.00019452,2]
[359610573,1746181849604,-400.0,0.00019452,2]
[359610574,1746181849615,-500.0,0.00019452,2]
[359610575,1746181849625,-710.7,0.00019452,2]
[359610576,1746181849635,-471.37,0.00019452,2]
[359610577,1746181849644,-151.0,0.00019452,2]
[359610578,1746181849655,-506.77,0.00019452,2]
[359610579,1746181849665,-500.0,0.00019452,2]
[359610580,1746181849675,-400.0,0.00019452,2]
[359610581,1746181849685,-151.0,0.00019452,2]
[359610582,1746181849696,-464.9,0.00019452,2]
[359610583,1746181849707,-400.0,0.00019452,2]
[359610584,1746181849717,-400.0,0.00019452,2]
[359610585,1746181849726,-400.0,0.00019452,2]
[359610586,1746181849737,-400.0,0.00019452,2]
[359610587,1746181849747,-1819.51,0.00019452,2]
[359610588,1746181849758,-525.26056236,0.00019452,2]
[359610589,1746181849767,-400.0,0.00019452,2]
[359610590,1746181849777,-400.0,0.00019452,2]
[359610591,1746181849786,-400.0,0.00019452,2]
[359610592,1746181849796,-400.0,0.00019452,2]
[359610593,1746181849806,-400.0,0.00019452,2]
[359610594,1746181849816,-625.67,0.00019452,2]
[359610595,1746181849825,-400.0,0.00019452,2]
[359610596,1746181849835,-603.28,0.00019452,2]
[359610597,1746181849845,-400.0,0.00019452,2]
[359610598,1746181849855,-400.0,0.00019452,2]
[359610599,1746181849865,-400.0,0.00019452,2]
[359610600,1746181849875,-225.23397235,0.00019452,2]
[359610601,1746181849885,-400.0,0.00019452,2]
[359610602,1746181849895,-400.0,0.00019452,2]
[359610603,1746181849905,-400.0,0.00019452,2]
[359610604,1746181849915,-400.0,0.00019452,2]
[359610605,1746181849925,-400.0,0.00019452,2]
[359610606,1746181849935,-400.0,0.00019452,2]
[359610607,1746181849945,-400.0,0.00019452,2]
[359610608,1746181849955,-400.0,0.00019452,2]
[359610609,1746181849964,-400.0,0.00019452,2]
[359610610,1746181849973,-500.0,0.00019452,2]
[359610611,1746181849983,-602.88,0.00019452,2]
[359610612,1746181849992,-400.0,0.00019452,2]
[359610613,1746181850001,-400.0,0.00019452,2]
[359610614,1746181850011,-408.45,0.00019452,2]
[359610615,1746181850020,-400.0,0.00019452,2]
[359610616,1746181850030,-307.98431167,0.00019452,2]
[359610617,1746181850039,-400.0,0.00019452,2]
[359610618,1746181850049,-1374.95,0.00019452,2]
[359610619,1746181850059,-400.0,0.00019452,2]
[359610620,1746181850069,-400.0,0.00019452,2]
[359610621,1746181850078,-400.0,0.00019452,2]
[359610622,1746181850088,-400.0,0.00019452,2]
[359610623,1746181850097,-400.0,0.00019452,2]
[359610624,1746181850107,-1532.62,0.00019452,2]
[359610625,1746181850116,-482.81,0.00019452,2]
[359610626,1746181850126,-774.61,0.00019452,2]
[359610627,1746181850135,-400.0,0.00019452,2]
[359610628,1746181850144,-400.0,0.00019452,2]
[359610629,1746181850154,-400.0,0.00019452,2]
[359610630,1746181850163,-400.0,0.00019452,2]
[359610631,1746181850173,-408.58980585,0.00019452,2]
[359610632,1746181850182,-500.0,0.00019452,2]
[359610633,1746181850191,-544.76,0.00019452,2]
[359610634,1746181850203,-400.0,0.00019452,2]
[359610635,1746181850212,-400.0,0.00019452,2]
[359610636,1746181850221,-400.0,0.00019452,2]
[359610637,1746181850230,-400.0,0.00019452,2]
[359610638,1746181850241,-400.0,0.00019452,2]
[359610639,1746181850251,-500.0,0.00019452,2]
[359610640,1746181850261,-2415.17,0.00019452,2]
[359610641,1746181850275,-679.43,0.00019452,2]
[359610642,1746181850286,-203.35131889,0.00019452,2]
[359610643,1746181850295,-459.3,0.00019452,2]
[359610644,1746181850305,-216.32818922,0.00019452,2]
[359610645,1746181850315,-400.0,0.00019452,2]
[359610646,1746181850325,-841.74,0.00019452,2]
[359610647,1746181850336,-500.0,0.00019452,2]
[359610648,1746181850346,-847.8,0.00019452,2]
[359610649,1746181850355,-579.46,0.00019452,2]
[359610650,1746181850364,-1796.45,0.00019452,2]
[359610651,1746181850373,-626.16,0.00019452,2]
[359610652,1746181850383,-2315.48,0.00019452,2]
[359610653,1746181850392,-400.0,0.00019452,2]
[359610654,1746181850402,-400.0,0.00019452,2]
[359610655,1746181850411,-400.0,0.00019452,2]
[359610656,1746181850421,-847.29,0.00019452,2]
[359610657,1746181850430,-2537.46,0.00019452,2]
[359610658,1746181850439,-1570.5,0.00019452,2]
[359610659,1746181850449,-400.0,0.00019452,2]
[359610660,1746181850459,-500.0,0.00019452,2]
[359610661,1746181850468,-847.23,0.00019452,2]
[359610662,1746181850477,-400.0,0.00019452,2]
[359610663,1746181850487,-2107.75,0.00019452,2]
[359610664,1746181850496,-500.0,0.00019452,2]
[359610665,1746181850505,-1145.52,0.00019452,2]
[359610666,1746181850515,-823.78,0.00019452,2]
[359610667,1746181850524,-400.0,0.00019452,2]
[359610668,1746181850533,-745.9,0.00019452,2]
[359610669,1746181850543,-502.448654,0.00019452,2]
[359610670,1746181850552,-400.0,0.00019452,2]
[359610671,1746181850562,-458.31,0.00019452,2]
[359610672,1746181850571,-7051.17,0.00019452,2]
[359610673,1746181850581,-2075.51,0.00019452,2]
[359610674,1746181850590,-400.0,0.00019452,2]
[359610675,1746181850600,-428.27,0.00019452,2]
[359610676,1746181850609,-400.0,0.00019452,2]
[359610677,1746181850619,-500.0,0.00019452,2]
[359610678,1746181850628,-402.34,0.00019452,2]
[359610679,1746181850638,-400.0,0.00019452,2]
[359610680,1746181850647,-438.01,0.00019452,2]
[359610681,1746181850656,-451.23123178,0.00019452,2]
[359610682,1746181850666,-2964.0,0.00019452,2]
[359610683,1746181850675,-400.0,0.00019452,2]
[359610684,1746181850685,-400.0,0.00019452,2]
[359610685,1746181850695,-400.0,0.00019452,2]
[359610686,1746181850704,-2313.34,0.00019452,2]
[359610687,1746181850714,-400.0,0.00019452,2]
[359610688,1746181850723,-6262.0,0.00019452,2]
[359610689,1746181850733,-400.0,0.00019452,2]
[359610690,1746181850743,-3584.73,0.00019452,2]
[359610691,1746181850752,-501.7984162,0.00019452,2]
[359610692,1746181850763,-1320.65,0.00019452,2]
[359610693,1746181850773,-400.0,0.00019452,2]
[359610694,1746181850783,-762.5,0.00019452,2]
[359610695,1746181850794,-400.0,0.00019452,2]
[359610696,1746181850804,-179.94109842,0.00019452,2]
[359610697,1746181850814,-1020.62,0.00019452,2]
[359610698,1746181850823,-406.06862201,0.00019452,2]
[359610699,1746181850833,-400.0,0.00019452,2]
[359610700,1746181850842,-509.64,0.00019452,2]
[359610701,1746181850852,-400.0,0.00019452,2]
[359610702,1746181850862,-744.15,0.00019452,2]
[359610703,1746181850871,-400.0,0.00019452,2]
[359610704,1746181850881,-3240.26,0.00019452,2]
[359610705,1746181850890,-400.0,0.00019452,2]
[359610706,1746181850901,-403.20349148,0.00019452,2]
[359610707,1746181850911,-572.44,0.00019452,2]
[359610708,1746181850920,-500.0,0.00019452,2]
[359610709,1746181850930,-400.0,0.00019452,2]
[359610710,1746181850939,-280.44908779,0.00019452,2]
[359610711,1746181850950,-179.889344,0.00019452,2]
[359610712,1746181850959,-500.0,0.00019452,2]
[359610713,1746181850969,-400.0,0.00019452,2]
[359610714,1746181850979,-151.0,0.00019452,2]
[359610715,1746181850989,-730.38,0.00019452,2]
[359610716,1746181850998,-151.0,0.00019452,2]
[359610717,1746181851008,-503.11640415,0.00019452,2]
[359610718,1746181851018,-151.0,0.00019452,2]
[359610719,1746181851029,-400.0,0.00019452,2]
[359610720,1746181851039,-433.11,0.00019452,2]
[359610721,1746181851049,-1039.12,0.00019452,2]
[359610722,1746181851059,-400.0,0.00019452,2]
[359610723,1746181851069,-470.96,0.00019452,2]
[359610724,1746181851079,-500.0,0.00019452,2]
[359610725,1746181851089,-3129.41,0.00019452,2]
[359610726,1746181851099,-282.66850683,0.00019452,2]
[359610727,1746181851109,-697.12,0.00019452,2]
[359610728,1746181851120,-151.0,0.00019452,2]
[359610729,1746181851130,-151.0,0.00019452,2]
[359610730,1746181851140,-182.46622954,0.00019452,2]
[359610731,1746181851150,-770.47,0.00019452,2]
[359610732,1746181851159,-400.0,0.00019452,2]
[359610733,1746181851169,-2745.66,0.00019452,2]
[359610734,1746181851178,-546.54255359,0.00019452,2]
[359610735,1746181851188,-465.59,0.00019452,2]
[359610736,1746181851200,-1604.04,0.00019452,2]
[359610737,1746181851209,-429.29,0.00019452,2]
[359610738,1746181851219,-936.54,0.00019452,2]
[359610739,1746181851227,-690.4,0.00019452,2]
[359610740,1746181851239,-400.0,0.00019452,2]
[359610741,1746181851248,-400.0,0.00019452,2]
[359610742,1746181851258,-1524.83,0.00019452,2]
[359610743,1746181851267,-400.0,0.00019452,2]
[359610744,1746181851276,-400.0,0.00019452,2]
[359610745,1746181851286,-977.16,0.00019452,2]
[359610746,1746181851296,-209.47719121,0.00019452,2]
[359610747,1746181851306,-400.0,0.00019452,2]
[359610748,1746181851316,-400.0,0.00019452,2]
[359610749,1746181851325,-400.0,0.00019452,2]
[359610750,1746181851335,-400.0,0.00019452,2]
[359610751,1746181851344,-2740.55,0.00019452,2]
[359610752,1746181851354,-500.0,0.00019452,2]
[359610753,1746181851364,-400.0,0.00019452,2]
[359610754,1746181851373,-400.0,0.00019452,2]
[359610755,1746181851383,-3010.75,0.00019452,2]
[359610756,1746181851392,-869.37,0.00019452,2]
[359610757,1746181851402,-2374.76,0.00019452,2]
[359610758,1746181851412,-201.17507322,0.00019452,2]
[359610759,1746181851422,-379.84402558,0.00019452,2]
[359610760,1746181851432,-151.0,0.00019452,2]
[359610761,1746181851442,-151.0,0.00019452,2]
[359610762,1746181851451,-400.0,0.00019452,2]
[359610763,1746181851461,-400.0,0.00019452,2]
[359610764,1746181851470,-404.61,0.00019452,2]
[359610765,1746181851480,-400.0,0.00019452,2]
[359610766,1746181851490,-400.0,0.00019452,2]
[359610767,1746181851499,-400.0,0.00019452,2]
[359610768,1746181851509,-1736.76,0.00019452,2]
[359610769,1746181851519,-400.0,0.00019452,2]
[359610770,1746181851529,-487.13,0.00019452,2]
[359610771,1746181851539,-909.48,0.00019452,2]
[359610772,1746181851549,-400.0,0.00019452,2]
[359610773,1746181851558,-400.0,0.00019452,2]
[359610774,1746181851568,-400.0,0.00019452,2]
[359610775,1746181851577,-400.0,0.00019452,2]
[359610776,1746181851587,-400.0,0.00019452,2]
[359610777,1746181851597,-2238.3,0.00019452,2]
[359610778,1746181851607,-472.31,0.00019452,2]
[359610779,1746181851616,-400.0,0.00019452,2]
[359610780,1746181851626,-500.0,0.00019452,2]
[359610781,1746181851636,-400.0,0.00019452,2]
[359610782,1746181851646,-543.05991026,0.00019452,2]
[359610783,1746181851656,-3413.17,0.00019452,2]
[359610784,1746181851666,-400.0,0.00019452,2]
[359610785,1746181851676,-2538.31,0.00019452,2]
[359610786,1746181851685,-400.0,0.00019452,2]
[359610787,1746181851695,-500.0,0.00019452,2]
[359610788,1746181851704,-400.0,0.00019452,2]
[359610789,1746181851713,-400.0,0.00019452,2]
[359610790,1746181851723,-437.05,0.00019452,2]
[359610791,1746181851733,-309.27689728,0.00019452,2]
[359610792,1746181851743,-400.0,0.00019452,2]
[359610793,1746181851752,-400.0,0.00019452,2]
[359610794,1746181851762,-400.0,0.00019452,2]
[359610795,1746181851771,-1026.58,0.00019452,2]
[359610796,1746181851781,-400.0,0.00019452,2]
[359610797,1746181851791,-1074.25,0.00019452,2]
[359610798,1746181851801,-722.86,0.00019452,2]
[359610799,1746181851812,-788.01,0.00019452,2]
[359610800,1746181851822,-400.0,0.00019452,2]
[359610801,1746181851832,-400.0,0.00019452,2]
[359610802,1746181851843,-400.0,0.00019452,2]
[359610803,1746181851852,-547.48,0.00019452,2]
[359610804,1746181851862,-505.46834272,0.00019452,2]
[359610805,1746181851873,-202.53741827,0.00019452,2]
[359610806,1746181851884,-400.0,0.00019452,2]
[359610807,1746181851893,-151.0,0.00019452,2]
[359610808,1746181851903,-474.9,0.00019452,2]
[359610809,1746181851912,-1225.48,0.00019452,2]
[359610810,1746181851922,-400.0,0.00019452,2]
[359610811,1746181851932,-400.0,0.00019452,2]
[359610812,1746181851942,-709.46,0.00019452,2]
[359610813,1746181851952,-2020.37,0.00019452,2]
[359610814,1746181851962,-500.0,0.00019452,2]
[359610815,1746181851971,-1851.58,0.00019452,2]
[359610816,1746181851982,-754.61,0.00019452,2]
[359610817,1746181851991,-500.0,0.00019452,2]
[359610818,1746181852003,-400.0,0.00019452,2]
[359610819,1746181852013,-669.33,0.00019452,2]
[359610820,1746181852023,-400.0,0.00019452,2]
[359610821,1746181852034,-417.16,0.00019452,2]
[359610822,1746181852044,-151.0,0.00019452,2]
[359610823,1746181852054,-400.0,0.00019452,2]
[359610824,1746181852063,-151.05210971,0.00019452,2]
[359610825,1746181852074,-728.65,0.00019452,2]
[359610826,1746181852083,-160.60203663,0.00019452,2]
[359610827,1746181852093,-151.25655935,0.00019452,2]
[359610828,1746181852104,-400.0,0.00019452,2]
[359610829,1746181852115,-2234.63,0.00019452,2]
[359610830,1746181852124,-400.0,0.00019452,2]
[359610831,1746181852135,-400.0,0.00019452,2]
[359610832,1746181852146,-20234.35,0.00019452,2]
[359610833,1746181852156,-400.0,0.00019452,2]
[359610834,1746181852167,-400.0,0.00019452,2]
[359610835,1746181852178,-400.0,0.00019452,2]
[359610836,1746181852189,-730.3,0.00019452,2]
[359610837,1746181852206,-1433.13,0.00019452,2]
[359610838,1746181852216,-7797.41,0.00019452,2]
[359610839,1746181852225,-449.53782653,0.00019452,2]
[359610840,1746181852235,-151.0703768,0.00019452,2]
[359610841,1746181852246,-400.0,0.00019452,2]
[359610842,1746181852255,-1170.34,0.00019452,2]
[359610843,1746181852265,-400.0,0.00019452,2]
[359610844,1746181852275,-400.0,0.00019452,2]
[359610845,1746181852284,-400.0,0.00019452,2]
[359610846,1746181852294,-400.0,0.00019452,2]
[359610847,1746181852303,-514.27672192,0.00019452,2]
[359610848,1746181852312,-6265.25,0.00019452,2]
[359610849,1746181852322,-400.0,0.00019452,2]